fUST/lending_fUST_20250511
["ID","MTS","AMOUNT","RATE_DAILY","PERIOD"]
[360642158,1746913848097,-400.0,8.767e-05,2]
[360642160,1746913848107,-400.0,8.767e-05,2]
[360642162,1746913848119,-400.0,8.767e-05,2]
[360642164,1746913848129,-239.2,8.767e-05,2]
[360642166,1746913848139,-400.0,8.767e-05,2]
[360642168,1746913848148,-400.0,8.767e-05,2]
[360642170,1746913848158,-397.32,8.767e-05,2]
[360642172,1746913848168,-400.0,8.767e-05,2]
[360642174,1746913848178,-400.0,8.767e-05,2]
[360642176,1746913848188,-340.17,8.767e-05,2]
[360642178,1746913848198,-400.0,8.767e-05,2]
[360642203,1746913848433,-277.29,8.767e-05,2]
[360642205,1746913848443,-400.0,8.767e-05,2]
[360642207,1746913848452,-400.0,8.767e-05,2]
[360642209,1746913848462,-400.0,8.767e-05,2]
[360642211,1746913848471,-400.0,8.767e-05,2]
[360642213,1746913848481,-170.32,8.767e-05,2]
[360642215,1746913848490,-400.0,8.767e-05,2]
[360642217,1746913848500,-474.07,8.767e-05,2]
[360642219,1746913848509,-400.0,8.767e-05,2]
[360642221,1746913848518,-400.0,8.767e-05,2]
[360642223,1746913848528,-400.0,8.767e-05,2]
[360642225,1746913848538,-547.82,8.767e-05,2]
[360642227,1746913848547,-400.0,8.767e-05,2]
[360642229,1746913848557,-400.0,8.767e-05,2]
[360642231,1746913848567,-400.0,8.767e-05,2]
[360642233,1746913848576,-400.0,8.767e-05,2]
[360642235,1746913848585,-400.0,8.767e-05,2]
[360642236,1746913848595,-400.0,8.767e-05,2]
[360642238,1746913848604,-400.0,8.767e-05,2]
[360642240,1746913848614,-1520.49,8.767e-05,2]
[360642242,1746913848624,-498.95,8.767e-05,2]
[360642244,1746913848635,-478.01,8.767e-05,2]
[360642246,1746913848644,-400.0,8.767e-05,2]
[360642248,1746913848653,-400.0,8.767e-05,2]
[360642250,1746913848663,-400.0,8.767e-05,2]
[360642252,1746913848672,-400.0,8.767e-05,2]
[360642254,1746913848682,-400.0,8.767e-05,2]
[360642256,1746913848691,-509.03,8.767e-05,2]
[360642258,1746913848701,-153.05,8.767e-05,2]
[360642260,1746913848712,-400.0,8.767e-05,2]
[360642262,1746913848722,-400.0,8.767e-05,2]
[360642264,1746913848731,-400.0,8.767e-05,2]
[360642266,1746913848741,-2854.76520162,8.796e-05,2]
[360642268,1746913848755,-4344.52900004,8.904e-05,2]
[360642270,1746913848764,-420.0,9.009e-05,2]
[360642272,1746913848776,-400.0,9.041e-05,2]
[360642274,1746913848786,-400.0,9.041e-05,2]
[360642276,1746913848797,-400.0,9.041e-05,2]
[360642278,1746913848807,-400.0,9.041e-05,2]
[360642280,1746913848817,-400.0,9.041e-05,2]
[360642283,1746913848828,-340.79,9.041e-05,2]
[360642285,1746913848838,-322.1,9.041e-05,2]
[360642287,1746913848847,-218.47,9.041e-05,2]
[360642288,1746913848856,-400.0,9.041e-05,2]
[360642290,1746913848866,-454.55,9.041e-05,2]
[360642292,1746913848875,-546.81,9.041e-05,2]
[360642294,1746913848885,-400.0,9.041e-05,2]
[360642296,1746913848895,-400.0,9.041e-05,2]
[360642298,1746913848905,-400.0,9.041e-05,2]
[360642300,1746913848915,-400.0,9.041e-05,2]
[360642302,1746913848924,-400.0,9.041e-05,2]
[360642304,1746913848934,-456.99,9.041e-05,2]
[360642306,1746913848943,-420.11,9.041e-05,2]
[360642308,1746913848952,-321.55,9.041e-05,2]
[360642310,1746913848962,-522.78,9.041e-05,2]
[360642312,1746913848971,-400.0,9.041e-05,2]
[360642314,1746913848981,-400.0,9.041e-05,2]
[360642317,1746913848991,-542.97,9.041e-05,2]
[360642318,1746913849001,-400.0,9.041e-05,2]
[360642320,1746913849010,-400.0,9.041e-05,2]
[360642322,1746913849020,-400.0,9.041e-05,2]
[360642325,1746913849030,-400.0,9.041e-05,2]
[360642326,1746913849040,-400.0,9.041e-05,2]
[360642329,1746913849050,-400.0,9.041e-05,2]
[360642330,1746913849059,-400.0,9.041e-05,2]
[360642332,1746913849069,-400.0,9.041e-05,2]
[360642334,1746913849078,-400.0,9.041e-05,2]
[360642336,1746913849088,-400.0,9.041e-05,2]
[360642338,1746913849098,-400.0,9.041e-05,2]
[360642340,1746913849108,-400.0,9.041e-05,2]
[360642343,1746913849118,-400.0,9.041e-05,2]
[360642344,1746913849129,-175.35,9.041e-05,2]
[360642347,1746913849139,-489.1,9.041e-05,2]
[360642349,1746913849149,-400.0,9.041e-05,2]
[360642351,1746913849159,-400.0,9.041e-05,2]
[360642353,1746913849168,-400.0,9.041e-05,2]
[360642354,1746913849178,-1520.49,9.041e-05,2]
[360642356,1746913849187,-498.95,9.041e-05,2]
[360642359,1746913849197,-400.0,9.041e-05,2]
[360642360,1746913849206,-400.0,9.041e-05,2]
[360642362,1746913849215,-209.07,9.041e-05,2]
[360642364,1746913849224,-400.0,9.041e-05,2]
[360642366,1746913849234,-219.13,9.041e-05,2]
[360642368,1746913849244,-400.0,9.041e-05,2]
[360642370,1746913849253,-400.0,9.041e-05,2]
[360642373,1746913849263,-400.0,9.041e-05,2]
[360642375,1746913849273,-2109.38,9.2e-05,2]
[360642377,1746913849283,-425.76,9.315e-05,2]
[360642378,1746913849293,-351.67,9.315e-05,2]
[360642380,1746913849302,-400.0,9.315e-05,2]
[360642383,1746913849311,-400.0,9.315e-05,2]
[360642385,1746913849321,-282.63,9.315e-05,2]
[360642386,1746913849330,-263.48,9.315e-05,2]
[360642388,1746913849340,-454.55,9.315e-05,2]
[360642390,1746913849350,-400.0,9.315e-05,2]
[360642393,1746913849360,-400.0,9.315e-05,2]
[360642395,1746913849370,-400.0,9.315e-05,2]
[360642397,1746913849382,-400.0,9.315e-05,2]
[360642399,1746913849391,-400.0,9.315e-05,2]
[360642401,1746913849401,-456.99,9.315e-05,2]
[360642403,1746913849410,-400.0,9.315e-05,2]
[360642405,1746913849420,-422.22,9.315e-05,2]
[360642407,1746913849429,-400.0,9.315e-05,2]
[360642408,1746913849442,-400.0,9.315e-05,2]
[360642409,1746913849452,-400.0,9.315e-05,2]
[360642410,1746913849462,-400.0,9.315e-05,2]
[360642411,1746913849471,-400.0,9.315e-05,2]
[360642412,1746913849481,-400.0,9.315e-05,2]
[360642413,1746913849490,-400.0,9.315e-05,2]
[360642415,1746913849499,-400.0,9.315e-05,2]
[360642417,1746913849509,-400.0,9.315e-05,2]
[360642419,1746913849518,-415.99,9.315e-05,2]
[360642421,1746913849527,-400.0,9.315e-05,2]
[360642422,1746913849537,-321.61,9.315e-05,2]
[360642425,1746913849547,-400.0,9.315e-05,2]
[360642427,1746913849557,-447.93,9.315e-05,2]
[360642429,1746913849567,-400.0,9.315e-05,2]
[360642431,1746913849577,-400.0,9.315e-05,2]
[360642433,1746913849587,-1520.49,9.315e-05,2]
[360642435,1746913849596,-498.95,9.315e-05,2]
[360642437,1746913849609,-291.95,9.315e-05,2]
[360642439,1746913849619,-400.0,9.315e-05,2]
[360642441,1746913849631,-400.0,9.315e-05,2]
[360642443,1746913849641,-400.0,9.315e-05,2]
[360642445,1746913849651,-400.0,9.315e-05,2]
[360642447,1746913849661,-326.65,9.315e-05,2]
[360642449,1746913849670,-500.0,9.353e-05,2]
[360642451,1746913849680,-500.0,9.353e-05,2]
[360642453,1746913849690,-500.0,9.353e-05,2]
[360642455,1746913849700,-500.0,9.434e-05,2]
[360642457,1746913849709,-500.0,9.434e-05,2]
[360642459,1746913849719,-500.0,9.434e-05,2]
[360642461,1746913849728,-500.0,9.434e-05,2]
[360642463,1746913849738,-500.0,9.434e-05,2]
[360642465,1746913849750,-500.0,9.434e-05,2]
[360642467,1746913849759,-500.0,9.434e-05,2]
[360642469,1746913849769,-500.0,9.434e-05,2]
[360642471,1746913849778,-500.0,9.434e-05,2]
[360642473,1746913849788,-500.0,9.448e-05,2]
[360642475,1746913849799,-500.0,9.448e-05,2]
[360642477,1746913849808,-500.0,9.448e-05,2]
[360642479,1746913849819,-500.0,9.448e-05,2]
[360642481,1746913849828,-500.0,9.448e-05,2]
[360642483,1746913849838,-500.0,9.448e-05,2]
[360642485,1746913849847,-194.108,9.488e-05,2]
[360642487,1746913849856,-221.42387614,9.542e-05,2]
[360642489,1746913849866,-400.0,9.589e-05,2]
[360642491,1746913849877,-400.0,9.589e-05,2]
[360642493,1746913849887,-454.55,9.589e-05,2]
[360642495,1746913849896,-400.0,9.589e-05,2]
[360642497,1746913849906,-400.0,9.589e-05,2]
[360642499,1746913849915,-400.0,9.589e-05,2]
[360642501,1746913849925,-400.0,9.589e-05,2]
[360642503,1746913849934,-400.0,9.589e-05,2]
[360642505,1746913849944,-456.99,9.589e-05,2]
[360642507,1746913849953,-400.0,9.589e-05,2]
[360642509,1746913849962,-400.0,9.589e-05,2]
[360642511,1746913849972,-400.0,9.589e-05,2]
[360642513,1746913849981,-400.0,9.589e-05,2]
[360642515,1746913849991,-400.0,9.589e-05,2]
[360642517,1746913850000,-400.0,9.589e-05,2]
[360642519,1746913850009,-542.91,9.589e-05,2]
[360642521,1746913850020,-351.73,9.589e-05,2]
[360642523,1746913850029,-400.0,9.589e-05,2]
[360642525,1746913850039,-326.13,9.589e-05,2]
[360642527,1746913850048,-400.0,9.589e-05,2]
[360642529,1746913850058,-400.0,9.589e-05,2]
[360642531,1746913850067,-400.0,9.589e-05,2]
[360642533,1746913850077,-400.0,9.589e-05,2]
[360642536,1746913850087,-1520.49,9.589e-05,2]
[360642538,1746913850096,-4344.52900004,9.589e-05,2]
[360642540,1746913850106,-498.95,9.589e-05,2]
[360642542,1746913850117,-400.0,9.589e-05,2]
[360642544,1746913850128,-400.0,9.589e-05,2]
[360642546,1746913850137,-347.64,9.589e-05,2]
[360642547,1746913850148,-400.0,9.589e-05,2]
[360642550,1746913850159,-500.0,9.665e-05,2]
[360642552,1746913850169,-500.0,9.665e-05,2]
[360642553,1746913850179,-500.0,9.665e-05,2]
[360642555,1746913850188,-500.0,9.692e-05,2]
[360642557,1746913850198,-500.0,9.721e-05,2]
[360642560,1746913850208,-500.0,9.721e-05,2]
[360642562,1746913850217,-408.36227071,9.721e-05,2]
[360642564,1746913850226,-500.0,9.754e-05,2]
[360642566,1746913850235,-400.0,9.863e-05,2]
[360642568,1746913850245,-400.0,9.863e-05,2]
[360642570,1746913850254,-454.55,9.863e-05,2]
[360642572,1746913850263,-400.0,9.863e-05,2]
[360642574,1746913850272,-400.0,9.863e-05,2]
[360642576,1746913850281,-400.0,9.863e-05,2]
[360642578,1746913850290,-400.0,9.863e-05,2]
[360642580,1746913850299,-400.0,9.863e-05,2]
[360642582,1746913850308,-456.99,9.863e-05,2]
[360642584,1746913850317,-400.0,9.863e-05,2]
[360642586,1746913850326,-400.0,9.863e-05,2]
[360642588,1746913850335,-400.0,9.863e-05,2]
[360642590,1746913850346,-400.0,9.863e-05,2]
[360642592,1746913850355,-400.0,9.863e-05,2]
[360642594,1746913850365,-400.0,9.863e-05,2]
[360642596,1746913850374,-400.0,9.863e-05,2]
[360642598,1746913850383,-241.95,9.863e-05,2]
[360642600,1746913850393,-400.0,9.863e-05,2]
[360642602,1746913850402,-400.0,9.863e-05,2]
[360642604,1746913850412,-400.0,9.863e-05,2]
[360642606,1746913850422,-1520.49,9.863e-05,2]
[360642608,1746913850432,-498.95,9.863e-05,2]
[360642610,1746913850442,-304.17,9.863e-05,2]
[360642612,1746913850451,-400.0,9.863e-05,2]
[360642614,1746913850461,-400.0,9.863e-05,2]
[360642616,1746913850470,-587.0,9.909e-05,2]
[360642618,1746913850480,-160.0,9.963e-05,2]
[360642620,1746913850489,-160.0,9.963e-05,2]
[360642622,1746913850499,-160.0,9.963e-05,2]
[360642624,1746913850508,-160.0,9.963e-05,2]
[360642626,1746913850518,-842.34118046,9.963e-05,2]
[360642628,1746913850528,-12619.28597579,9.963e-05,2]
[360642630,1746913850538,-422.13686889,9.963e-05,2]
[360642632,1746913850547,-160.0,9.963e-05,2]
[360642634,1746913850557,-212.13671436,9.963e-05,2]
[360642636,1746913850566,-160.0,9.963e-05,2]
[360642639,1746913850578,-160.0,9.963e-05,2]
[360642641,1746913850587,-33090.7693728,9.972e-05,2]
[360642643,1746913850596,-2200.0,0.0001,2]
[360642645,1746913850605,-33090.76937283,0.0001,2]
[360642647,1746913850615,-26054.4120961,0.0001,2]
[360648730,1746914017982,3000.0,0.00013,30]
[360648731,1746914018478,3000.0,0.0001301,30]
[360648732,1746914019161,3000.0,0.0001302,30]
[360648733,1746914019663,3000.0,0.0001303,30]
[360648734,1746914020217,3000.0,0.0001304,30]
[360648735,1746914020747,3000.0,0.0001305,30]
[360648736,1746914021313,3000.0,0.0001306,30]
[360648737,1746914021922,3000.0,0.0001307,30]
[360648738,1746914022413,3000.0,0.0001308,30]
[360648739,1746914022946,3000.0,0.0001309,30]
[360648740,1746914023500,3000.0,0.000131,30]
[360648741,1746914024298,3000.0,0.0001311,30]
[360648742,1746914024680,3000.0,0.0001312,30]
[360648743,1746914025231,3000.0,0.0001313,30]
[360648744,1746914025752,3254.814004,0.0001314,30]
[360648746,1746914156476,24900.0,7.397e-05,2]
[360648749,1746914556206,1668.2146409,7.2e-05,2]
[360648750,1746914588780,10000.0,7.237e-05,2]
[360648751,1746914636987,153.13,0.000169,31]
[360648752,1746914637041,153.13,0.000169,31]
[360648753,1746914637098,153.13,0.000169,31]
[360648754,1746914637161,153.13,0.000169,31]
[360648755,1746914637215,153.13,0.000169,31]
[360648756,1746914637285,153.13,0.000169,31]
[360648757,1746914637338,153.13,0.000169,31]
[360648758,1746914637416,153.13,0.000169,31]
[360648759,1746914637476,153.13,0.000169,31]
[360648760,1746914637527,153.13,0.000169,31]
[360648761,1746914637582,153.13,0.000169,31]
[360648762,1746914637643,153.13,0.000169,31]
[360648763,1746914637700,153.13,0.000169,31]
[360648764,1746914637764,153.13,0.000169,31]
[360648797,1746915011149,470.43248455,5.479e-05,30]
[360648798,1746915012317,465.27162423,5.753e-05,30]
[360648908,1746915038862,-257.0,8.108e-05,2]
[360648909,1746915038871,-28.99950906,8.108e-05,2]
[360648917,1746915038972,-152.00049094,8.108e-05,2]
[360648918,1746915038982,-1200.0,8.108e-05,2]
[360648919,1746915038992,-500.0,8.109e-05,2]
[360648920,1746915039002,-560.30388318,8.109e-05,2]
[360648921,1746915039012,-12.5305926,8.109e-05,2]
[360649329,1746915046603,-487.4694074,8.109e-05,2]
[360649331,1746915046613,-500.0,8.109e-05,2]
[360649333,1746915046622,-500.0,8.109e-05,2]
[360649335,1746915046632,-500.0,8.109e-05,2]
[360649337,1746915046642,-500.0,8.109e-05,2]
[360649339,1746915046652,-155.98306683,8.109e-05,2]
[360649341,1746915046662,-439.7265439,8.11e-05,2]
[360649343,1746915046671,-465.86183085,8.11e-05,2]
[360649345,1746915046680,-522.6638663,8.118e-05,2]
[360649347,1746915046692,-3399.79038113,8.119e-05,2]
[360649364,1746915046842,-14060.61612174,8.119e-05,2]
[360649366,1746915046858,-4946.81751285,8.119e-05,2]
[360649369,1746915046870,-4671.95304427,8.119e-05,2]
[360649371,1746915046879,-925.22780491,8.119e-05,2]
[360649373,1746915046889,-400.0,8.219e-05,2]
[360649375,1746915046899,-400.0,8.219e-05,2]
[360649377,1746915046909,-400.0,8.219e-05,2]
[360649379,1746915046918,-318.0230777,8.219e-05,2]
[360649381,1746915046927,-400.0,8.219e-05,2]
[360649383,1746915046937,-400.0,8.219e-05,2]
[360649385,1746915046947,-400.0,8.219e-05,2]
[360649387,1746915046957,-400.0,8.219e-05,2]
[360649390,1746915046966,-400.0,8.219e-05,2]
[360649392,1746915046975,-400.0,8.219e-05,2]
[360649396,1746915046985,-400.0,8.219e-05,2]
[360649398,1746915046994,-400.0,8.219e-05,2]
[360649400,1746915047004,-400.0,8.219e-05,2]
[360649402,1746915047013,-400.0,8.219e-05,2]
[360649404,1746915047022,-400.0,8.219e-05,2]
[360649406,1746915047032,-400.0,8.219e-05,2]
[360649408,1746915047041,-400.0,8.219e-05,2]
[360649410,1746915047050,-400.0,8.219e-05,2]
[360649412,1746915047059,-400.0,8.219e-05,2]
[360649414,1746915047068,-1077.01,8.219e-05,2]
[360649416,1746915047078,-400.0,8.219e-05,2]
[360649418,1746915047087,-500.0,8.219e-05,2]
[360649419,1746915047099,-400.0,8.219e-05,2]
[360649421,1746915047108,-13.46265302,8.219e-05,2]
[360649424,1746915047120,-386.53734698,8.219e-05,2]
[360649426,1746915047130,-400.0,8.219e-05,2]
[360649428,1746915047140,-400.0,8.219e-05,2]
[360649430,1746915047149,-400.0,8.219e-05,2]
[360649432,1746915047159,-400.0,8.219e-05,2]
[360649434,1746915047168,-400.0,8.219e-05,2]
[360649436,1746915047180,-400.0,8.219e-05,2]
[360649438,1746915047191,-400.0,8.219e-05,2]
[360649440,1746915047201,-400.0,8.219e-05,2]
[360649442,1746915047210,-400.0,8.219e-05,2]
[360649444,1746915047219,-400.0,8.219e-05,2]
[360649445,1746915047229,-495.15,8.219e-05,2]
[360649446,1746915047238,-400.0,8.219e-05,2]
[360649447,1746915047247,-400.0,8.219e-05,2]
[360649448,1746915047256,-400.0,8.219e-05,2]
[360649449,1746915047265,-400.0,8.219e-05,2]
[360649451,1746915047274,-400.0,8.219e-05,2]
[360649453,1746915047283,-44.77029291,8.219e-05,2]
[360650360,1746915078558,250.0,7.468e-05,2]
[360650361,1746915093739,1000.0,8.008e-05,2]
[360650363,1746915166904,623.7246646,8.008e-05,2]
[360650366,1746915245659,153.15,0.000169,31]
[360650367,1746915245725,153.15,0.000169,31]
[360650368,1746915245768,153.15,0.000169,31]
[360650369,1746915245809,153.15,0.000169,31]
[360650370,1746915245861,153.15,0.000169,31]
[360650371,1746915245918,153.15,0.000169,31]
[360650372,1746915245989,153.15,0.000169,31]
[360650373,1746915246035,153.15,0.000169,31]
[360650374,1746915246081,153.15,0.000169,31]
[360650375,1746915246145,153.15,0.000169,31]
[360650376,1746915246214,153.15,0.000169,31]
[360650377,1746915246266,153.15,0.000169,31]
[360650378,1746915246308,153.15,0.000169,31]
[360650379,1746915246354,153.15,0.000169,31]
[360650383,1746915443650,200.27442703,8.006e-05,2]
[360650384,1746915445375,24900.0,7.397e-05,2]
[360650385,1746915496853,1000.0,8.006e-05,2]
[360650386,1746915594359,516.7114551,7.302e-05,2]
[360650387,1746915618454,300.0,7.941e-05,2]
[360650388,1746915633740,685.0,8.019e-05,2]
[360650389,1746915649194,3774.92146385,8.018e-05,2]
[360650392,1746915853227,153.17,0.000169,31]
[360650393,1746915853279,153.17,0.000169,31]
[360650394,1746915853358,153.17,0.000169,31]
[360650395,1746915853411,153.17,0.000169,31]
[360650396,1746915853477,153.17,0.000169,31]
[360650397,1746915853632,153.17,0.000169,31]
[360650398,1746915853685,153.17,0.000169,31]
[360650399,1746915934035,1052.2254195,7.376e-05,2]
[360650400,1746915935170,246.54711895,7.997e-05,2]
[360650478,1746916232701,-500.0,8.092e-05,2]
[360650480,1746916232710,-500.0,8.092e-05,2]
[360650482,1746916232720,-601.61550293,8.092e-05,2]
[360650483,1746916232729,-265.36982131,8.092e-05,2]
[360650485,1746916232738,-300.0,8.093e-05,2]
[360650487,1746916232748,-300.0,8.093e-05,2]
[360650489,1746916232757,-1200.0,8.093e-05,2]
[360650491,1746916232767,-300.0,8.093e-05,2]
[360650493,1746916232776,-50000.0,8.094e-05,2]
[360650495,1746916232786,-500.0,8.094e-05,2]
[360650497,1746916232795,-500.0,8.094e-05,2]
[360650499,1746916232805,-500.0,8.094e-05,2]
[360650500,1746916232815,-500.0,8.094e-05,2]
[360650502,1746916232825,-500.0,8.094e-05,2]
[360650505,1746916232834,-500.0,8.094e-05,2]
[360650506,1746916232847,-500.0,8.094e-05,2]
[360650508,1746916232857,-500.0,8.094e-05,2]
[360650510,1746916232866,-500.0,8.094e-05,2]
[360650512,1746916232876,-500.0,8.094e-05,2]
[360650514,1746916232885,-305.58240233,8.094e-05,2]
[360650516,1746916232894,-500.0,8.094e-05,2]
[360650518,1746916232904,-500.0,8.094e-05,2]
[360650520,1746916232914,-500.0,8.094e-05,2]
[360650523,1746916232923,-500.0,8.094e-05,2]
[360650526,1746916232933,-500.0,8.094e-05,2]
[360650528,1746916232943,-607.55655492,8.094e-05,2]
[360650530,1746916232953,-500.0,8.094e-05,2]
[360650532,1746916232962,-400.0,8.219e-05,2]
[360650534,1746916232971,-506.70725886,8.219e-05,2]
[360650536,1746916232981,-400.0,8.219e-05,2]
[360650538,1746916232991,-400.0,8.219e-05,2]
[360650540,1746916233001,-400.0,8.219e-05,2]
[360650542,1746916233011,-400.0,8.219e-05,2]
[360650543,1746916233021,-400.0,8.219e-05,2]
[360650545,1746916233030,-287.11977731,8.219e-05,2]
[360650547,1746916233040,-400.0,8.219e-05,2]
[360650549,1746916233051,-400.0,8.219e-05,2]
[360650551,1746916233061,-201.31831115,8.219e-05,2]
[360650553,1746916233071,-400.0,8.219e-05,2]
[360650555,1746916233080,-510.96321179,8.219e-05,2]
[360650557,1746916233090,-400.0,8.219e-05,2]
[360650558,1746916233099,-400.0,8.219e-05,2]
[360650560,1746916233109,-401.65631602,8.219e-05,2]
[360650561,1746916233119,-400.0,8.219e-05,2]
[360650563,1746916233128,-400.0,8.219e-05,2]
[360650564,1746916233138,-300.0,8.219e-05,2]
[360650565,1746916233148,-400.0,8.219e-05,2]
[360650566,1746916233158,-401.85304115,8.219e-05,2]
[360650567,1746916233167,-400.0,8.219e-05,2]
[360650568,1746916233178,-400.0,8.219e-05,2]
[360650569,1746916233189,-265.19126459,8.219e-05,2]
[360650570,1746916233199,-400.0,8.219e-05,2]
[360650571,1746916233208,-502.90133346,8.219e-05,2]
[360650572,1746916233219,-400.0,8.219e-05,2]
[360650573,1746916233229,-400.0,8.219e-05,2]
[360650574,1746916233239,-400.0,8.219e-05,2]
[360650575,1746916233249,-400.0,8.219e-05,2]
[360650576,1746916233259,-400.0,8.219e-05,2]
[360650577,1746916233269,-151.92698858,8.219e-05,2]
[360650579,1746916233279,-400.0,8.219e-05,2]
[360650581,1746916233289,-400.0,8.219e-05,2]
[360650583,1746916233301,-400.0,8.219e-05,2]
[360650585,1746916233310,-162.17756403,8.219e-05,2]
[360650587,1746916233320,-400.0,8.219e-05,2]
[360650589,1746916233330,-400.0,8.219e-05,2]
[360650591,1746916233339,-400.0,8.219e-05,2]
[360650593,1746916233349,-509.36555648,8.219e-05,2]
[360650595,1746916233359,-400.0,8.219e-05,2]
[360650597,1746916233369,-400.0,8.219e-05,2]
[360650598,1746916233379,-400.0,8.219e-05,2]
[360650600,1746916233389,-400.0,8.219e-05,2]
[360650602,1746916233398,-400.0,8.219e-05,2]
[360650604,1746916233408,-400.0,8.219e-05,2]
[360650606,1746916233418,-400.0,8.219e-05,2]
[360650608,1746916233427,-400.0,8.219e-05,2]
[360650610,1746916233439,-398.45353196,8.219e-05,2]
[360650612,1746916233449,-400.0,8.219e-05,2]
[360650614,1746916233459,-400.0,8.219e-05,2]
[360650616,1746916233471,-400.0,8.219e-05,2]
[360650618,1746916233482,-217.02008389,8.219e-05,2]
[360650619,1746916233492,-400.0,8.219e-05,2]
[360650621,1746916233503,-400.0,8.219e-05,2]
[360650623,1746916233512,-400.0,8.219e-05,2]
[360650625,1746916233521,-232.50953888,8.219e-05,2]
[360650627,1746916233531,-400.0,8.219e-05,2]
[360650629,1746916233542,-209.61716352,8.219e-05,2]
[360650631,1746916233554,-400.0,8.219e-05,2]
[360650633,1746916233564,-502.76376093,8.219e-05,2]
[360650635,1746916233573,-400.0,8.219e-05,2]
[360650637,1746916233582,-406.2276468,8.219e-05,2]
[360650639,1746916233590,-402.15349311,8.219e-05,2]
[360650641,1746916233599,-400.0,8.219e-05,2]
[360650643,1746916233609,-400.0,8.219e-05,2]
[360650644,1746916233618,-400.0,8.219e-05,2]
[360650646,1746916233627,-400.0,8.219e-05,2]
[360650648,1746916233636,-400.0,8.219e-05,2]
[360650650,1746916233646,-400.0,8.219e-05,2]
[360650652,1746916233655,-400.0,8.219e-05,2]
[360650654,1746916233665,-400.0,8.219e-05,2]
[360650655,1746916233674,-400.0,8.219e-05,2]
[360650656,1746916233683,-400.0,8.219e-05,2]
[360650657,1746916233693,-400.0,8.219e-05,2]
[360650658,1746916233702,-400.0,8.219e-05,2]
[360650659,1746916233712,-400.0,8.219e-05,2]
[360650660,1746916233722,-400.0,8.219e-05,2]
[360650661,1746916233731,-400.0,8.219e-05,2]
[360650662,1746916233741,-400.0,8.219e-05,2]
[360650663,1746916233750,-348.26917293,8.219e-05,2]
[360650664,1746916233759,-400.0,8.219e-05,2]
[360650665,1746916233769,-400.0,8.219e-05,2]
[360650666,1746916233778,-492.86732542,8.219e-05,2]
[360650667,1746916233787,-400.0,8.219e-05,2]
[360650668,1746916233796,-400.0,8.219e-05,2]
[360650669,1746916233805,-400.0,8.219e-05,2]
[360650670,1746916233815,-400.0,8.219e-05,2]
[360650671,1746916233824,-400.0,8.219e-05,2]
[360650672,1746916233833,-400.0,8.219e-05,2]
[360650673,1746916233841,-400.0,8.219e-05,2]
[360650674,1746916233850,-400.0,8.219e-05,2]
[360650675,1746916233859,-400.0,8.219e-05,2]
[360650676,1746916233869,-400.0,8.219e-05,2]
[360650677,1746916233878,-400.0,8.219e-05,2]
[360650678,1746916233887,-500.0,8.219e-05,2]
[360650679,1746916233896,-400.0,8.219e-05,2]
[360650680,1746916233905,-400.0,8.219e-05,2]
[360650681,1746916233914,-400.0,8.219e-05,2]
[360650682,1746916233923,-400.0,8.219e-05,2]
[360650683,1746916233932,-400.0,8.219e-05,2]
[360650684,1746916233942,-400.0,8.219e-05,2]
[360650685,1746916233951,-400.0,8.219e-05,2]
[360650686,1746916233960,-400.0,8.219e-05,2]
[360650687,1746916233969,-400.0,8.219e-05,2]
[360650688,1746916233978,-400.0,8.219e-05,2]
[360650690,1746916233987,-400.0,8.219e-05,2]